[Event "*** Titled Tuesday Blitz"]
[Site "Chess.com"]
[Date "2019.07.02"]
[Round "6"]
[White "TonRicher"]
[Black "Vegan4future"]
[Result "0-1"]
[WhiteElo "2403"]
[BlackElo "2405"]
[TimeControl "180+2"]
[EndTime "14:23:19 PDT"]
[Termination "Vegan4future won by resignation"]

1. d4 {[%clk 0:03:01.9]} 1... Nf6 {[%clk 0:02:58.7]} 2. c4 {[%clk 0:02:59.6]}
2... g6 {[%clk 0:03:00.2]} 3. Nc3 {[%clk 0:02:59.9]} 3... Bg7 {[%clk 0:03:02.1]}
4. e4 {[%clk 0:03:00.5]} 4... d6 {[%clk 0:03:04]} 5. Nf3 {[%clk 0:03:01.2]} 5...
O-O {[%clk 0:03:05.9]} 6. Be2 {[%clk 0:03:02.3]} 6... e5 {[%clk 0:03:07.4]} 7.
d5 {[%clk 0:03:03.7]} 7... a5 {[%clk 0:03:05.9]} 8. Bg5 {[%clk 0:03:03]} 8... h6
{[%clk 0:03:05.8]} 9. Be3 {[%clk 0:03:04.6]} 9... Na6 {[%clk 0:03:06.2]} 10. Nd2
{[%clk 0:03:05.1]} 10... Nd7 {[%clk 0:03:07.2]} 11. f3 {[%clk 0:02:58.1]} 11...
f5 {[%clk 0:03:08]} 12. a3 {[%clk 0:02:51]} 12... f4 {[%clk 0:03:07.5]} 13. Bf2
{[%clk 0:02:52]} 13... Qg5 {[%clk 0:02:47.5]} 14. Bf1 {[%clk 0:02:40]} 14...
Nac5 {[%clk 0:02:33.8]} 15. b4 {[%clk 0:02:35.8]} 15... axb4 {[%clk 0:02:32.8]}
16. axb4 {[%clk 0:02:37.7]} 16... Rxa1 {[%clk 0:02:34]} 17. Qxa1 {[%clk
0:02:38.7]} 17... Na6 {[%clk 0:02:32.9]} 18. Qa3 {[%clk 0:02:35.1]} 18... Qe7
{[%clk 0:02:14.1]} 19. c5 {[%clk 0:02:21.6]} 19... dxc5 {[%clk 0:02:10.7]} 20.
bxc5 {[%clk 0:02:22.1]} 20... Ndxc5 {[%clk 0:02:06.1]} 21. d6 {[%clk 0:01:42.2]}
21... Qxd6 {[%clk 0:01:53.5]} 22. Nd5 {[%clk 0:01:32.6]} 22... Be6 {[%clk
0:01:35.8]} 23. Bc4 {[%clk 0:01:18.3]} 23... Kh7 {[%clk 0:01:26.1]} 24. O-O
{[%clk 0:01:12.4]} 24... Bxd5 {[%clk 0:01:26.8]} 25. exd5 {[%clk 0:00:54.6]}
25... Rd8 {[%clk 0:01:18.2]} 26. Rc1 {[%clk 0:00:40.1]} 26... Bf8 {[%clk
0:01:18]} 27. Qa1 {[%clk 0:00:28.5]} 27... Bg7 {[%clk 0:01:05.5]} 28. Qb1 {[%clk
0:00:28.6]} 28... h5 {[%clk 0:00:53.9]} 29. Bxa6 {[%clk 0:00:23.5]} 29... Nxa6
{[%clk 0:00:51.4]} 30. Ne4 {[%clk 0:00:23.8]} 30... Qb4 {[%clk 0:00:47.7]} 31.
Ng5+ {[%clk 0:00:21.2]} 31... Kg8 {[%clk 0:00:47.7]} 32. Qxg6 {[%clk 0:00:20.8]}
32... Qe7 {[%clk 0:00:40]} 33. Bh4 {[%clk 0:00:19.5]} 33... Rxd5 {[%clk
0:00:18.3]} 34. Qh7+ {[%clk 0:00:19.8]} 34... Kf8 {[%clk 0:00:19.6]} 35. Qxh5
{[%clk 0:00:21.4]} 35... Qd7 {[%clk 0:00:17.3]} 36. Rf1 {[%clk 0:00:18]} 36...
Rd1 {[%clk 0:00:16.7]} 37. Nh7+ {[%clk 0:00:19]} 37... Kg8 {[%clk 0:00:17.7]}
38. Ng5 {[%clk 0:00:15.7]} 38... Rxf1+ {[%clk 0:00:18.4]} 39. Kxf1 {[%clk
0:00:17.6]} 39... e4 {[%clk 0:00:19]} 40. Qh7+ {[%clk 0:00:17.5]} 40... Kf8
{[%clk 0:00:20]} 41. Qxe4 {[%clk 0:00:19.2]} 41... Qd1+ {[%clk 0:00:20.8]} 42.
Be1 {[%clk 0:00:20.2]} 42... Nc5 {[%clk 0:00:21.2]} 43. Qf5+ {[%clk 0:00:20.7]}
43... Kg8 {[%clk 0:00:22.3]} 44. Qxc5 {[%clk 0:00:21.3]} 44... Qd3+ {[%clk
0:00:23.7]} 45. Kg1 {[%clk 0:00:17.4]} 45... Bd4+ {[%clk 0:00:25.1]} 46. Bf2
{[%clk 0:00:18.6]} 46... Bxc5 {[%clk 0:00:26.3]} 47. Bxc5 {[%clk 0:00:19.3]}
47... Qd1+ {[%clk 0:00:27.7]} 48. Kf2 {[%clk 0:00:19.9]} 48... Qc2+ {[%clk
0:00:29.6]} 49. Kf1 {[%clk 0:00:20.7]} 49... Qxc5 {[%clk 0:00:31.5]} 50. Ne4
{[%clk 0:00:21.8]} 50... Qe5 {[%clk 0:00:32]} 51. Ke2 {[%clk 0:00:21.4]} 51...
b5 {[%clk 0:00:33.1]} 52. Kd3 {[%clk 0:00:22.2]} 52... c5 {[%clk 0:00:33.9]} 53.
g3 {[%clk 0:00:23.1]} 53... c4+ {[%clk 0:00:34.2]} 54. Ke2 {[%clk 0:00:24.6]}
54... fxg3 {[%clk 0:00:35.6]} 55. hxg3 {[%clk 0:00:26.3]} 55... b4 {[%clk
0:00:37.1]} 56. Ke3 {[%clk 0:00:27.3]} 56... b3 {[%clk 0:00:37.8]} 57. f4 {[%clk
0:00:29.2]} 57... Qe7 {[%clk 0:00:35.3]} 58. Kd4 {[%clk 0:00:29.4]} 58... b2
{[%clk 0:00:36.2]} 59. Nc3 {[%clk 0:00:30.6]} 59... Qg7+ {[%clk 0:00:35.9]} 60.
Kxc4 {[%clk 0:00:31.2]} 60... Qxc3+ {[%clk 0:00:37.3]} 61. Kxc3 {[%clk
0:00:32.6]} 61... b1=Q {[%clk 0:00:39.2]} 0-1

[Event "*** Titled Tuesday Blitz"]
[Site "Chess.com"]
[Date "2019.07.02"]
[Round "6"]
[White "axvesik"]
[Black "FMJoseHerrera"]
[Result "1/2-1/2"]
[WhiteElo "2448"]
[BlackElo "2631"]
[TimeControl "180+2"]
[EndTime "14:23:29 PDT"]
[Termination "Game drawn by repetition"]

1. e4 {[%clk 0:03:01.9]} 1... c5 {[%clk 0:03:00.5]} 2. Nf3 {[%clk 0:03:02.4]}
2... e6 {[%clk 0:03:01.6]} 3. d4 {[%clk 0:03:03.9]} 3... cxd4 {[%clk 0:03:03.5]}
4. Nxd4 {[%clk 0:03:05.6]} 4... a6 {[%clk 0:03:02.6]} 5. Nc3 {[%clk 0:03:06.4]}
5... Qc7 {[%clk 0:03:02.3]} 6. Bd3 {[%clk 0:03:04.8]} 6... d6 {[%clk 0:03:03.2]}
7. O-O {[%clk 0:03:03.7]} 7... Nf6 {[%clk 0:03:02.1]} 8. Qe2 {[%clk 0:03:01.7]}
8... Nbd7 {[%clk 0:03:02.2]} 9. Kh1 {[%clk 0:03:01.9]} 9... h5 {[%clk
0:02:56.3]} 10. Bg5 {[%clk 0:02:46.8]} 10... Be7 {[%clk 0:02:56.4]} 11. f4
{[%clk 0:02:43.5]} 11... b5 {[%clk 0:02:46.2]} 12. a3 {[%clk 0:02:33.8]} 12...
Bb7 {[%clk 0:02:37.7]} 13. Rae1 {[%clk 0:02:33]} 13... h4 {[%clk 0:02:35.2]} 14.
Rf3 {[%clk 0:01:53.7]} 14... h3 {[%clk 0:02:34.1]} 15. Rxh3 {[%clk 0:01:51.6]}
15... Rxh3 {[%clk 0:02:32.1]} 16. gxh3 {[%clk 0:01:51.7]} 16... Nc5 {[%clk
0:02:26.3]} 17. Kg1 {[%clk 0:01:47.5]} 17... Qb6 {[%clk 0:02:18.3]} 18. Qf2
{[%clk 0:01:40.6]} 18... Rc8 {[%clk 0:01:55]} 19. e5 {[%clk 0:01:35.7]} 19...
dxe5 {[%clk 0:01:43.6]} 20. fxe5 {[%clk 0:01:36.6]} 20... Nxd3 {[%clk
0:01:44.4]} 21. cxd3 {[%clk 0:01:35.2]} 21... Bc5 {[%clk 0:01:40.8]} 22. Be3
{[%clk 0:01:25]} 22... Nd5 {[%clk 0:01:41.3]} 23. Nxd5 {[%clk 0:01:25.4]} 23...
Bxd5 {[%clk 0:01:43.2]} 24. b4 {[%clk 0:01:23]} 24... Bxd4 {[%clk 0:01:14.5]}
25. Bxd4 {[%clk 0:01:23.4]} 25... Qd8 {[%clk 0:01:09.6]} 26. Bc5 {[%clk
0:01:14.7]} 26... Qg5+ {[%clk 0:01:09.6]} 27. Qg3 {[%clk 0:01:08.4]} 27... Qh6
{[%clk 0:00:24.9]} 28. Rf1 {[%clk 0:01:06.1]} 28... f5 {[%clk 0:00:09.9]} 29.
exf6 {[%clk 0:00:52.4]} 29... gxf6 {[%clk 0:00:11.8]} 30. Qg8+ {[%clk
0:00:45.1]} 30... Kd7 {[%clk 0:00:13]} 31. Qf7+ {[%clk 0:00:43.4]} 31... Kc6
{[%clk 0:00:14.4]} 32. Rxf6 {[%clk 0:00:43.5]} 32... Qc1+ {[%clk 0:00:10.8]} 33.
Kf2 {[%clk 0:00:43.2]} 33... Qd2+ {[%clk 0:00:11.3]} 34. Kg3 {[%clk 0:00:38]}
34... Qg2+ {[%clk 0:00:08.6]} 35. Kf4 {[%clk 0:00:34.6]} 35... Qxh2+ {[%clk
0:00:08.2]} 36. Ke3 {[%clk 0:00:25.8]} 36... Qxh3+ {[%clk 0:00:09.3]} 37. Kd2
{[%clk 0:00:22.3]} 37... Qh2+ {[%clk 0:00:10.2]} 38. Kc3 {[%clk 0:00:21.7]}
38... Qe5+ {[%clk 0:00:11.4]} 39. Kc2 {[%clk 0:00:19.5]} 39... Qe2+ {[%clk
0:00:11.9]} 40. Kc3 {[%clk 0:00:20.9]} 40... Qe1+ {[%clk 0:00:13.2]} 41. Kc2
{[%clk 0:00:21.6]} 41... Rh8 {[%clk 0:00:09.3]} 42. Rf1 {[%clk 0:00:11.3]} 42...
Rh2+ {[%clk 0:00:09.2]} 43. Rf2 {[%clk 0:00:11.2]} 43... Rxf2+ {[%clk
0:00:08.2]} 44. Qxf2 {[%clk 0:00:11.6]} 44... Qa1 {[%clk 0:00:07.8]} 45. Qf8
{[%clk 0:00:10.6]} 45... Qa2+ {[%clk 0:00:08.5]} 46. Kc1 {[%clk 0:00:11.1]}
46... Qxa3+ {[%clk 0:00:09.6]} 47. Kd2 {[%clk 0:00:12]} 47... Qb2+ {[%clk
0:00:10.8]} 48. Ke3 {[%clk 0:00:12.5]} 48... Qc1+ {[%clk 0:00:12.5]} 49. Kf2
{[%clk 0:00:10.1]} 49... Qc2+ {[%clk 0:00:12.9]} 50. Ke3 {[%clk 0:00:10.6]}
50... Qc1+ {[%clk 0:00:13.2]} 51. Kd4 {[%clk 0:00:11]} 51... Qg1+ {[%clk
0:00:11.8]} 52. Kc3 {[%clk 0:00:12.1]} 52... Qa1+ {[%clk 0:00:10.5]} 53. Kd2
{[%clk 0:00:12.8]} 53... Qb2+ {[%clk 0:00:11.1]} 54. Ke3 {[%clk 0:00:14.1]}
54... Qc1+ {[%clk 0:00:10.2]} 1/2-1/2

[Event "*** Titled Tuesday Blitz"]
[Site "Chess.com"]
[Date "2019.07.02"]
[Round "6"]
[White "SalgadoChess91"]
[Black "MITerryble"]
[Result "1/2-1/2"]
[WhiteElo "2832"]
[BlackElo "2828"]
[TimeControl "180+2"]
[EndTime "14:23:33 PDT"]
[Termination "Game drawn by agreement"]

1. d4 {[%clk 0:03:01.9]} 1... e6 {[%clk 0:03:00.2]} 2. c4 {[%clk 0:03:02.3]}
2... Bb4+ {[%clk 0:03:00.7]} 3. Bd2 {[%clk 0:03:02]} 3... Qe7 {[%clk 0:03:01.5]}
4. g3 {[%clk 0:03:01.6]} 4... Nf6 {[%clk 0:03:00.9]} 5. Bg2 {[%clk 0:03:02.7]}
5... Nc6 {[%clk 0:03:01.8]} 6. e3 {[%clk 0:03:00.1]} 6... d5 {[%clk 0:03:02.5]}
7. Qc2 {[%clk 0:02:52.1]} 7... O-O {[%clk 0:03:00.9]} 8. Ne2 {[%clk 0:02:50.9]}
8... Rd8 {[%clk 0:02:55.6]} 9. O-O {[%clk 0:02:49.8]} 9... dxc4 {[%clk
0:02:23.9]} 10. Qxc4 {[%clk 0:02:46.7]} 10... Bxd2 {[%clk 0:02:24.1]} 11. Nxd2
{[%clk 0:02:47.3]} 11... e5 {[%clk 0:02:25.6]} 12. d5 {[%clk 0:02:34.8]} 12...
Nb4 {[%clk 0:02:08.4]} 13. Nc3 {[%clk 0:02:30.8]} 13... c6 {[%clk 0:01:51.7]}
14. e4 {[%clk 0:01:52.2]} 14... cxd5 {[%clk 0:01:44.8]} 15. Nxd5 {[%clk
0:01:46.9]} 15... Nfxd5 {[%clk 0:01:32.7]} 16. exd5 {[%clk 0:01:47.3]} 16... Bf5
{[%clk 0:01:34.1]} 17. d6 {[%clk 0:01:35.9]} 17... Qxd6 {[%clk 0:01:33.9]} 18.
Ne4 {[%clk 0:01:35.6]} 18... Qe7 {[%clk 0:01:32.7]} 19. Rad1 {[%clk 0:01:15.6]}
19... h6 {[%clk 0:00:38.1]} 20. h3 {[%clk 0:01:13]} 20... Nc6 {[%clk 0:00:25.9]}
21. Nc5 {[%clk 0:01:04.6]} 21... Nd4 {[%clk 0:00:27.1]} 22. Nxb7 {[%clk
0:00:58.6]} 22... Rdc8 {[%clk 0:00:28.3]} 23. Qd5 {[%clk 0:00:55.6]} 23... Qf6
{[%clk 0:00:15]} 24. Rfe1 {[%clk 0:00:50.9]} 24... Re8 {[%clk 0:00:10.6]} 25.
Nd6 {[%clk 0:00:48.8]} 25... Red8 {[%clk 0:00:11.4]} 26. Qxe5 {[%clk 0:00:39.1]}
26... Qxe5 {[%clk 0:00:02.9]} 27. Rxe5 {[%clk 0:00:39.9]} 27... Rxd6 {[%clk
0:00:02.9]} 28. Bxa8 {[%clk 0:00:40.6]} 28... Ne2+ {[%clk 0:00:04.3]} 29. Rxe2
{[%clk 0:00:41.5]} 29... Rxd1+ {[%clk 0:00:06.1]} 30. Kg2 {[%clk 0:00:42.7]}
30... Be6 {[%clk 0:00:07.2]} 31. a3 {[%clk 0:00:37.9]} 31... Rc1 {[%clk
0:00:08]} 32. Be4 {[%clk 0:00:35.7]} 32... g5 {[%clk 0:00:09.2]} 33. h4 {[%clk
0:00:34.8]} 33... gxh4 {[%clk 0:00:09.5]} 34. gxh4 {[%clk 0:00:35.8]} 34... Kg7
{[%clk 0:00:11.4]} 35. Rc2 {[%clk 0:00:33.6]} 35... Re1 {[%clk 0:00:12.1]} 36.
f3 {[%clk 0:00:29.2]} 36... Kf6 {[%clk 0:00:12.1]} 37. Kg3 {[%clk 0:00:30.3]}
37... Rg1+ {[%clk 0:00:09.2]} 38. Kf4 {[%clk 0:00:30.5]} 38... Rh1 {[%clk
0:00:10.6]} 39. Rc7 {[%clk 0:00:30.9]} 39... Rxh4+ {[%clk 0:00:11]} 40. Ke3
{[%clk 0:00:31.1]} 40... Rh2 {[%clk 0:00:12]} 41. b4 {[%clk 0:00:31.4]} 41... h5
{[%clk 0:00:05]} 42. Rxa7 {[%clk 0:00:32.1]} 42... h4 {[%clk 0:00:06.6]} 43. b5
{[%clk 0:00:33.5]} 43... Rb2 {[%clk 0:00:06.9]} 44. a4 {[%clk 0:00:29.2]} 44...
h3 {[%clk 0:00:08.2]} 45. Ra8 {[%clk 0:00:29.5]} 45... Kg7 {[%clk 0:00:09.4]}
46. Rd8 {[%clk 0:00:20.1]} 46... Rb4 {[%clk 0:00:06.1]} 47. Rd4 {[%clk
0:00:15.2]} 47... h2 {[%clk 0:00:06.2]} 48. Rd1 {[%clk 0:00:15.6]} 48... Rxa4
{[%clk 0:00:07]} 49. Rh1 {[%clk 0:00:16.4]} 49... Rb4 {[%clk 0:00:04.9]} 50. Bc6
{[%clk 0:00:17.2]} 50... Bc4 {[%clk 0:00:05.4]} 51. Rxh2 {[%clk 0:00:14.7]}
51... Bxb5 {[%clk 0:00:06.8]} 52. Bxb5 {[%clk 0:00:15.5]} 52... Rxb5 {[%clk
0:00:08.7]} 1/2-1/2

[Event "*** Titled Tuesday Blitz"]
[Site "Chess.com"]
[Date "2019.07.02"]
[Round "6"]
[White "Siniauski"]
[Black "Kawhi_Leonard2"]
[Result "0-1"]
[WhiteElo "2420"]
[BlackElo "2322"]
[TimeControl "180+2"]
[EndTime "14:23:36 PDT"]
[Termination "Kawhi_Leonard2 won by checkmate"]

1. e4 {[%clk 0:03:00.3]} 1... c5 {[%clk 0:03:00.7]} 2. Nf3 {[%clk 0:03:00.5]}
2... d6 {[%clk 0:03:01.6]} 3. Bb5+ {[%clk 0:02:59.3]} 3... Bd7 {[%clk
0:03:01.5]} 4. Bxd7+ {[%clk 0:03:00.2]} 4... Qxd7 {[%clk 0:03:02.8]} 5. c4
{[%clk 0:03:01]} 5... Nf6 {[%clk 0:03:03.4]} 6. Nc3 {[%clk 0:03:01.9]} 6... Nc6
{[%clk 0:03:03.4]} 7. O-O {[%clk 0:03:02.6]} 7... g6 {[%clk 0:03:04.2]} 8. d4
{[%clk 0:03:01.7]} 8... cxd4 {[%clk 0:03:04.7]} 9. Nxd4 {[%clk 0:03:03.6]} 9...
Bg7 {[%clk 0:03:05.3]} 10. Be3 {[%clk 0:03:04.7]} 10... Ng4 {[%clk 0:03:01.2]}
11. Nd5 {[%clk 0:02:30.6]} 11... Nxe3 {[%clk 0:02:57.7]} 12. fxe3 {[%clk
0:02:32.5]} 12... O-O {[%clk 0:02:53.6]} 13. Nf3 {[%clk 0:02:19.4]} 13... Rac8
{[%clk 0:02:50.6]} 14. Qd2 {[%clk 0:02:14.7]} 14... Ne5 {[%clk 0:02:41.7]} 15.
Nxe5 {[%clk 0:02:15.5]} 15... Bxe5 {[%clk 0:02:42.3]} 16. Rac1 {[%clk
0:02:15.9]} 16... Qd8 {[%clk 0:02:20.9]} 17. b3 {[%clk 0:02:12.9]} 17... e6
{[%clk 0:02:21.1]} 18. Nf4 {[%clk 0:02:11.3]} 18... Qe7 {[%clk 0:02:07.3]} 19.
Rfd1 {[%clk 0:02:08.4]} 19... Rfd8 {[%clk 0:02:06.6]} 20. Nd3 {[%clk 0:02:09.3]}
20... Bg7 {[%clk 0:02:03.5]} 21. a4 {[%clk 0:01:56.7]} 21... Qh4 {[%clk
0:01:45.5]} 22. Nf2 {[%clk 0:01:57]} 22... Be5 {[%clk 0:01:43]} 23. g3 {[%clk
0:01:52.1]} 23... Qh5 {[%clk 0:01:32.8]} 24. a5 {[%clk 0:01:43.6]} 24... Qf3
{[%clk 0:01:31.2]} 25. Kf1 {[%clk 0:01:29.8]} 25... h5 {[%clk 0:01:30.2]} 26.
Qe2 {[%clk 0:01:29.6]} 26... Qf6 {[%clk 0:01:10.7]} 27. Kg2 {[%clk 0:01:25.6]}
27... Qg5 {[%clk 0:01:07.9]} 28. Qf3 {[%clk 0:01:23.2]} 28... Kg7 {[%clk
0:01:05.3]} 29. Rf1 {[%clk 0:01:22.9]} 29... Rd7 {[%clk 0:01:02.4]} 30. Rcd1
{[%clk 0:01:15.7]} 30... Bc3 {[%clk 0:00:57]} 31. Nh3 {[%clk 0:00:42.2]} 31...
Qxa5 {[%clk 0:00:56.7]} 32. Nf4 {[%clk 0:00:40.2]} 32... Qa2+ {[%clk 0:00:49.6]}
33. Rf2 {[%clk 0:00:39.4]} 33... Qxb3 {[%clk 0:00:50.3]} 34. Rdf1 {[%clk
0:00:39.4]} 34... Qxc4 {[%clk 0:00:37.1]} 35. Kh3 {[%clk 0:00:21.7]} 35... Qc5
{[%clk 0:00:30.5]} 36. g4 {[%clk 0:00:18.7]} 36... hxg4+ {[%clk 0:00:21.1]} 37.
Qxg4 {[%clk 0:00:19.8]} 37... Rh8+ {[%clk 0:00:20.7]} 38. Kg2 {[%clk 0:00:20.4]}
38... Qe5 {[%clk 0:00:20.2]} 39. Qg3 {[%clk 0:00:15.2]} 39... Qxe4+ {[%clk
0:00:20.3]} 40. Kg1 {[%clk 0:00:14.7]} 40... Be5 {[%clk 0:00:20.1]} 41. Rd1
{[%clk 0:00:12.1]} 41... d5 {[%clk 0:00:19.1]} 42. Rdf1 {[%clk 0:00:12.4]} 42...
b5 {[%clk 0:00:19.2]} 43. Qg4 {[%clk 0:00:10]} 43... Qxe3 {[%clk 0:00:14]} 44.
Kg2 {[%clk 0:00:05.9]} 44... Qe4+ {[%clk 0:00:11.1]} 45. Kg1 {[%clk 0:00:06]}
45... Bxf4 {[%clk 0:00:11.2]} 46. Rxf4 {[%clk 0:00:06.8]} 46... Qe3+ {[%clk
0:00:12.5]} 47. Kg2 {[%clk 0:00:08.1]} 47... Rc7 {[%clk 0:00:12.7]} 48. R1f2
{[%clk 0:00:07.1]} 48... Rh5 {[%clk 0:00:10]} 49. R4f3 {[%clk 0:00:04.9]} 49...
Qe4 {[%clk 0:00:10.4]} 50. Qg3 {[%clk 0:00:05.5]} 50... Rf5 {[%clk 0:00:09.6]}
51. Qxc7 {[%clk 0:00:06]} 51... Kg8 {[%clk 0:00:10.5]} 52. Kg3 {[%clk
0:00:06.5]} 52... Rg5+ {[%clk 0:00:10.3]} 53. Kh3 {[%clk 0:00:02.7]} 53... Qg4#
{[%clk 0:00:11.3]} 0-1

[Event "*** Titled Tuesday Blitz"]
[Site "Chess.com"]
[Date "2019.07.02"]
[Round "6"]
[White "akgod"]
[Black "LarissaSteenbekkers"]
[Result "1-0"]
[WhiteElo "2219"]
[BlackElo "1981"]
[TimeControl "180+2"]
[EndTime "14:23:41 PDT"]
[Termination "akgod won on time"]

1. d4 {[%clk 0:02:57.9]} 1... Nf6 {[%clk 0:02:59.4]} 2. c4 {[%clk 0:02:57.9]}
2... g6 {[%clk 0:02:59.4]} 3. Nf3 {[%clk 0:02:59.1]} 3... Bg7 {[%clk 0:02:58.7]}
4. Nc3 {[%clk 0:03:00.7]} 4... d5 {[%clk 0:02:57.1]} 5. Bf4 {[%clk 0:02:59.5]}
5... O-O {[%clk 0:02:55.5]} 6. e3 {[%clk 0:03:00.6]} 6... c5 {[%clk 0:02:54.5]}
7. dxc5 {[%clk 0:03:00.6]} 7... Qa5 {[%clk 0:02:51.6]} 8. Rc1 {[%clk 0:03:00.8]}
8... dxc4 {[%clk 0:02:50.5]} 9. Bxc4 {[%clk 0:03:01.2]} 9... Qxc5 {[%clk
0:02:50.2]} 10. Bb3 {[%clk 0:02:53.7]} 10... Qa5 {[%clk 0:02:50]} 11. O-O {[%clk
0:02:54.6]} 11... Bg4 {[%clk 0:02:42.9]} 12. h3 {[%clk 0:02:55.5]} 12... Bxf3
{[%clk 0:02:42.3]} 13. Qxf3 {[%clk 0:02:57.4]} 13... Nc6 {[%clk 0:02:39.9]} 14.
Rfd1 {[%clk 0:02:51.5]} 14... Rfd8 {[%clk 0:02:35.2]} 15. e4 {[%clk 0:02:42.2]}
15... Nd4 {[%clk 0:02:25.6]} 16. Rxd4 {[%clk 0:02:32.8]} 16... Rxd4 {[%clk
0:02:22.7]} 17. e5 {[%clk 0:02:33.9]} 17... Nh5 {[%clk 0:02:02.9]} 18. Be3
{[%clk 0:02:14.9]} 18... Rd7 {[%clk 0:02:00.2]} 19. Qxf7+ {[%clk 0:02:12.5]}
19... Kh8 {[%clk 0:01:58.8]} 20. g4 {[%clk 0:01:57.5]} 20... Rf8 {[%clk
0:01:29.4]} 21. Qe6 {[%clk 0:01:52.4]} 21... Rd3 {[%clk 0:01:21.6]} 22. gxh5
{[%clk 0:01:49.6]} 22... Qxe5 {[%clk 0:01:10.7]} 23. Qxe5 {[%clk 0:01:49.4]}
23... Bxe5 {[%clk 0:01:09.9]} 24. hxg6 {[%clk 0:01:51]} 24... hxg6 {[%clk
0:01:04.1]} 25. Ne4 {[%clk 0:01:43.5]} 25... Bf4 {[%clk 0:00:56.1]} 26. Bxf4
{[%clk 0:01:13.5]} 26... Rxf4 {[%clk 0:00:52.9]} 27. Rc8+ {[%clk 0:01:15]} 27...
Kg7 {[%clk 0:00:52.3]} 28. Rg8+ {[%clk 0:01:16.5]} 28... Kh6 {[%clk 0:00:46.2]}
29. Ng3 {[%clk 0:01:16.8]} 29... Kh7 {[%clk 0:00:36.9]} 30. Re8 {[%clk
0:01:12.4]} 30... Rd7 {[%clk 0:00:32.9]} 31. Kg2 {[%clk 0:01:09.1]} 31... a5
{[%clk 0:00:31.1]} 32. Be6 {[%clk 0:01:08.1]} 32... Rc7 {[%clk 0:00:28.9]} 33.
Bg4 {[%clk 0:01:02]} 33... Kg7 {[%clk 0:00:23]} 34. Ra8 {[%clk 0:00:53.8]} 34...
Rc2 {[%clk 0:00:20.6]} 35. Nh1 {[%clk 0:00:52]} 35... b6 {[%clk 0:00:18.3]} 36.
Ra7 {[%clk 0:00:51]} 36... Kf6 {[%clk 0:00:17.8]} 37. b4 {[%clk 0:00:46.1]}
37... Rxb4 {[%clk 0:00:15.1]} 38. a3 {[%clk 0:00:45.3]} 38... Rb3 {[%clk
0:00:14.6]} 39. Bd1 {[%clk 0:00:46.1]} 39... Rcb2 {[%clk 0:00:11.2]} 40. Bxb3
{[%clk 0:00:47.1]} 40... Rxb3 {[%clk 0:00:12.1]} 41. Rb7 {[%clk 0:00:48.6]}
41... Ke6 {[%clk 0:00:11.7]} 42. Ng3 {[%clk 0:00:48]} 42... Kd6 {[%clk
0:00:12.4]} 43. a4 {[%clk 0:00:49.5]} 43... Kc6 {[%clk 0:00:12.3]} 44. Rxe7
{[%clk 0:00:50.3]} 44... Rb4 {[%clk 0:00:12.8]} 45. Re6+ {[%clk 0:00:49.9]}
45... Kc5 {[%clk 0:00:12.8]} 46. Rxg6 {[%clk 0:00:51.3]} 46... Rxa4 {[%clk
0:00:13.6]} 47. Rg4 {[%clk 0:00:46.4]} 47... Rd4 {[%clk 0:00:11.2]} 48. Rxd4
{[%clk 0:00:42]} 48... Kxd4 {[%clk 0:00:12.1]} 49. h4 {[%clk 0:00:43.5]} 49...
Ke5 {[%clk 0:00:11.6]} 50. h5 {[%clk 0:00:44.1]} 50... a4 {[%clk 0:00:10.3]} 51.
h6 {[%clk 0:00:44.6]} 51... Kf6 {[%clk 0:00:09.9]} 52. Ne4+ {[%clk 0:00:34.9]}
52... Kg6 {[%clk 0:00:10]} 53. Nc3 {[%clk 0:00:36.8]} 53... a3 {[%clk
0:00:09.3]} 54. Kf3 {[%clk 0:00:37.7]} 54... Kxh6 {[%clk 0:00:09]} 55. Na2
{[%clk 0:00:38.7]} 55... Kg5 {[%clk 0:00:09.1]} 56. Ke4 {[%clk 0:00:39.9]} 56...
Kg4 {[%clk 0:00:09.2]} 57. f4 {[%clk 0:00:41.1]} 57... b5 {[%clk 0:00:08.2]} 58.
f5 {[%clk 0:00:42.1]} 58... Kg5 {[%clk 0:00:06.1]} 59. Ke5 {[%clk 0:00:43.2]}
59... Kh6 {[%clk 0:00:06.6]} 60. Kf6 {[%clk 0:00:43]} 60... Kh7 {[%clk
0:00:07.2]} 61. Ke7 {[%clk 0:00:44.3]} 1-0